bitfinex/quotes_ETHUSD_20241120
["timestamp","ask_amount","ask_price","bid_price","bid_amount"]
[1732137842860,0.143267,3075.4,3074.3,0.7751]
[1732137842861,3.25262,3074.5,3074.3,0.7751]
[1732137843062,3.25262,3074.5,3074.4,0.10154152]
[1732137843566,3.25266,3074.4,3074.3,0.7751]
[1732137844015,3.25266,3074.4,3074.3,0.87665021]
[1732137844143,3.25266,3074.4,3074.3,0.10155406]
[1732137844471,3.25345,3073.7,3073.5,0.7733]
[1732137844672,3.25351,3073.6,3073.0,0.7733]
[1732137844976,3.25378,3073.4,3073.1,0.10157821]
[1732137845267,3.25379,3073.4,3073.2,0.10157821]
[1732137845481,3.25379,3073.4,3073.3,0.10157821]
[1732137845676,3.25362,3073.5,3073.3,0.10157821]
[1732137845838,3.25396,3073.2,3073.0,0.7733]
[1732137846036,3.25392,3073.3,3073.0,0.7733]
[1732137846242,3.2538,3073.4,3073.0,0.7733]
[1732137846445,3.25356,3073.6,3073.0,0.7733]
[1732137846650,3.25379,3073.4,3073.0,0.7733]
[1732137846854,6.5076,3073.4,3073.0,0.7733]
[1732137847050,3.25404,3073.1,3072.4,3.25476]
[1732137847376,3.25418,3073.0,3072.5,0.7915]
[1732137847545,4.52945752,3073.9,3072.8,3.25435]
[1732137847741,4.52945752,3073.9,3072.6,6.94959947]
[1732137847742,3.25374,3073.4,3072.6,6.94959947]
[1732137848051,3.25389,3073.3,3072.7,0.44866195]
[1732137848251,3.25406,3073.1,3072.7,0.44866195]
[1732137848441,3.25422,3073.0,3072.5,3.7915]
[1732137848636,3.25406,3073.1,3072.5,3.7915]
[1732137848871,3.15406,3073.1,3072.5,7.04613]
[1732137849100,3.25432,3072.9,3072.6,1.030081]
[1732137849301,3.25432,3072.9,3072.5,0.7915]
[1732137849603,3.25422,3073.0,3072.5,3.7915]
[1732137849835,3.25405,3073.1,3072.5,1.17065]
[1732137850106,3.25388,3073.3,3072.5,1.17065]
[1732137850271,3.6523666,3073.7,3072.5,1.17065]
[1732137850474,3.25447,3072.7,3072.5,0.7915]
[1732137850773,3.25447,3072.7,3071.6,3.6723666]
[1732137850774,3.25457,3072.6,3072.1,0.7707]
[1732137850996,3.25471,3072.5,3072.1,0.7707]
[1732137851202,3.25457,3072.6,3072.1,0.7707]
[1732137851500,0.8022,3073.1,3072.1,0.7707]
[1732137851501,3.25496,3072.3,3072.1,0.7707]
[1732137851700,3.6523666,3072.9,3071.0,0.01]
[1732137851701,3.25484,3072.4,3071.6,3.25562]
[1732137851903,3.25436,3072.8,3071.7,0.402632]
[1732137852074,3.25492,3072.3,3071.7,3.25545]
[1732137852273,3.2548,3072.4,3071.8,3.25541]
[1732137852505,3.2548,3072.4,3071.9,0.651086]
[1732137852676,3.25429,3072.9,3071.9,0.651086]
[1732137852677,3.25502,3072.2,3071.9,0.651086]
[1732137852874,3.25502,3072.2,3071.5,4.02634]
[1732137852875,3.25502,3072.2,3071.5,0.7707]
[1732137853075,3.25512,3072.1,3071.6,0.37707]
[1732137853414,4.12316412,3072.9,3071.5,0.80324892]
[1732137853415,3.6523666,3072.5,3071.5,0.7707]
[1732137853605,3.25537,3071.9,3071.5,0.7707]
[1732137853972,1.24409752,3072.4,3071.5,0.7707]
[1732137853973,3.25549,3071.8,3071.5,0.7707]
[1732137854303,3.25489,3072.3,3071.5,0.7707]
[1732137854490,3.25554,3071.7,3071.5,0.7707]
[1732137854690,3.2555,3071.8,3071.5,0.7707]
[1732137854891,1.24409752,3072.4,3071.1,0.8026]
[1732137854892,3.25563,3071.6,3071.1,0.8026]
[1732137855094,3.25513,3072.1,3071.1,0.8026]
[1732137855095,3.25547,3071.8,3071.1,0.8026]
[1732137855296,0.48964641,3072.3,3071.1,0.8026]
[1732137855297,0.7733,3072.4,3071.2,3.25605]
[1732137855601,3.6523666,3072.5,3071.7,0.7986]
[1732137855602,3.25467,3072.5,3071.7,0.7986]
[1732137855810,3.25447,3072.7,3071.8,3.25533]
[1732137855979,3.25447,3072.7,3071.8,0.03254858]
[1732137856180,4.08168,3073.1,3071.8,0.03254858]
[1732137856181,3.2543,3072.9,3071.9,3.0]
[1732137856381,0.8276,3073.1,3072.3,0.8214]
[1732137856382,3.25407,3073.1,3072.3,0.8214]
[1732137856588,3.25446,3072.7,3072.3,0.8214]
[1732137856987,3.25426,3072.9,3072.3,0.8214]
[1732137857187,3.25426,3072.9,3072.3,1.20354]
[1732137857513,4.07142,3073.5,3072.3,1.20354]
[1732137857514,0.8178,3073.5,3072.3,1.20354]
[1732137857717,3.25424,3073.0,3072.3,1.20354]
[1732137858014,3.25433,3072.9,3072.3,1.20354]
[1732137858220,3.25424,3073.0,3072.4,3.25476]
[1732137858388,3.25428,3072.9,3072.3,0.8214]
[1732137858590,3.2545,3072.7,3072.3,0.8214]
[1732137858798,3.25428,3072.9,3072.3,0.8214]
[1732137858997,3.25436,3072.8,3072.3,0.8214]
[1732137859205,3.25393,3073.2,3072.3,0.8214]
[1732137859411,3.25464,3072.6,3072.3,0.8214]
[1732137859728,3.2554,3071.9,3071.6,0.8051]
[1732137859890,3.6523666,3072.5,3071.6,0.8051]
[1732137859891,3.25516,3072.1,3071.6,0.8051]
[1732137860291,6.5099,3072.3,3071.6,4.06071]
[1732137860498,14.06,3075.5,3072.1,3.25503]
[1732137860499,0.8291,3073.1,3072.1,3.25503]
[1732137860730,0.8291,3073.1,3071.9,3.25528]
[1732137860731,3.25464,3072.6,3072.2,0.8051]
[1732137861032,3.2547,3072.5,3072.2,0.8051]
[1732137861327,3.2548,3072.4,3071.9,3.7835]
[1732137861690,0.77355666,3073.0,3071.9,0.7835]
[1732137861896,3.254,3073.2,3072.6,4.03806]
[1732137862197,3.25372,3073.4,3072.6,0.7835]
[1732137862537,4.51587052,3073.9,3072.7,0.03254102]
[1732137862538,4.94061392,3073.9,3072.7,0.03254102]
[1732137862832,4.94061392,3073.9,3073.2,3.25386]
[1732137862833,3.25324,3073.9,3073.2,3.25386]
[1732137863040,3.25324,3073.9,3073.4,0.7653]
[1732137863196,3.25303,3074.1,3073.6,3.25348]
[1732137863399,3.25337,3073.8,3073.4,0.7653]
[1732137863627,3.25341,3073.7,3073.4,0.7653]
[1732137863829,0.325271,3074.3,3073.4,0.7653]
[1732137864148,0.44066418,3074.3,3073.4,0.7653]
[1732137864370,0.44066418,3074.3,3073.1,0.03253687]
[1732137864371,3.2537,3073.5,3073.1,0.03253687]
[1732137864571,3.25341,3073.7,3073.1,3.28653687]
[1732137864732,0.7995,3074.2,3073.1,3.28653687]
[1732137864733,0.7995,3074.2,3073.3,3.25381]
[1732137864932,0.7995,3074.2,3073.0,3.7706]
[1732137864933,3.25358,3073.6,3073.0,3.7706]
[1732137865138,3.25345,3073.7,3073.0,3.7706]
[1732137865583,3.25339,3073.8,3073.1,6.50793]
[1732137865756,0.7995,3074.2,3073.6,3.25344]
[1732137865943,3.25285,3074.3,3073.7,0.03253387]
[1732137866143,0.7903,3074.7,3073.1,3.80398]
[1732137866144,0.7903,3074.7,3073.8,4.07998]
[1732137866344,3.2524,3074.7,3074.1,3.25291]
[1732137867461,3.25253,3074.6,3074.0,3.25306]
[1732137867778,3.25253,3074.6,3074.0,3.0]
[1732137867960,3.25253,3074.6,3074.1,3.25298]
[1732137868963,3.25218,3074.9,3074.1,3.25298]
[1732137869164,3.25246,3074.6,3074.0,6.25308]
[1732137869353,3.25238,3074.7,3074.1,3.25296]
[1732137869877,3.6523666,3074.8,3073.8,0.8267]
[1732137870078,3.253,3074.1,3073.4,0.7959]
[1732137870282,0.44066418,3074.7,3073.4,0.7959]
[1732137870283,3.25274,3074.4,3073.7,3.25334]
[1732137870465,3.25283,3074.3,3073.7,3.25334]
[1732137870777,3.25283,3074.3,3073.7,3.25332]
[1732137870778,6.50569,3074.3,3073.7,3.25332]
[1732137870945,3.25259,3074.5,3073.7,3.904012]
[1732137871144,3.25287,3074.3,3073.5,3.28609955]
[1732137871378,3.25302,3074.1,3073.6,3.0]
[1732137871679,3.25309,3074.0,3073.6,3.0]
[1732137871905,3.25309,3074.0,3073.4,4.0496]
[1732137871906,3.25311,3074.0,3073.4,4.0496]
[1732137872229,3.25241,3074.7,3074.0,3.25302]
[1732137872507,3.25262,3074.5,3074.1,0.7959]
[1732137872669,3.25287,3074.2,3073.7,0.7959]
[1732137872865,3.25287,3074.2,3073.7,1.12449845]
[1732137873065,3.25287,3074.2,3073.7,4.12449845]
[1732137873475,3.25287,3074.2,3073.7,3.7959]
[1732137873724,3.2531,3074.0,3073.7,0.7959]
[1732137873871,3.25287,3074.2,3073.7,0.7959]
[1732137874070,3.25339,3073.8,3073.3,0.7959]
[1732137874369,3.25352,3073.6,3073.3,0.7959]
[1732137874597,3.25316,3074.0,3073.3,4.04965]
[1732137874795,3.25321,3073.9,3073.3,4.04965]
[1732137874996,3.25321,3073.9,3073.3,0.7959]
[1732137875308,3.25321,3073.9,3073.4,3.25372]
[1732137875774,6.5065,3073.9,3073.3,0.7959]
[1732137875973,4.4215666,3074.4,3073.3,1.200875]
[1732137875974,3.25304,3074.1,3073.3,1.200875]
[1732137876282,3.25261,3074.5,3073.3,0.7959]
[1732137876283,3.25281,3074.3,3073.3,0.7959]
[1732137876508,3.25259,3074.5,3073.7,3.25332]
[1732137876802,4.4615666,3074.8,3074.2,3.25281]
[1732137876803,3.25226,3074.8,3074.2,3.25281]
[1732137876968,3.25226,3074.8,3074.1,3.25292]
[1732137877170,3.25206,3075.0,3074.4,3.25265]
[1732137877372,3.25206,3075.0,3074.5,3.25255]
[1732137877598,3.25206,3075.0,3074.2,3.25283]
[1732137877800,3.25215,3074.9,3074.4,3.25266]
[1732137878982,3.25215,3074.9,3074.3,3.25266]
[1732137879290,3.25221,3074.9,3074.3,3.25266]
[1732137879524,3.25227,3074.8,3074.3,3.25266]
[1732137879714,3.25192,3075.1,3074.0,0.7596]
[1732137879917,3.25253,3074.6,3074.1,3.25294]
[1732137881310,3.25253,3074.6,3074.0,1.786194]
[1732137881550,3.25253,3074.6,3074.0,7.01263]
[1732137881842,3.25253,3074.6,3074.1,3.25297]
[1732137882248,3.6523666,3075.2,3074.0,3.7596]
[1732137882428,3.25276,3074.4,3074.0,0.7596]
[1732137882606,3.25292,3074.2,3073.7,0.8046]
[1732137882807,6.50588,3074.2,3073.7,0.8046]
[1732137883007,3.25304,3074.1,3073.7,0.8046]
[1732137883201,3.25305,3074.1,3073.7,0.8046]
[1732137883738,1.089551,3074.6,3073.7,0.8046]
[1732137883739,3.25293,3074.2,3073.7,0.8046]
[1732137883904,3.25305,3074.1,3073.7,0.8046]
[1732137884106,3.25269,3074.4,3073.7,1.53577]
[1732137884332,3.25269,3074.4,3073.9,3.25319]
[1732137884518,4.0168,3074.6,3073.9,3.2531]
[1732137884861,4.0168,3074.6,3073.9,3.25311]
[1732137884862,3.25252,3074.6,3073.9,3.25311]
[1732137885046,3.25267,3074.4,3073.8,3.2533]
[1732137885228,3.25267,3074.4,3073.8,3.66234285]
[1732137885950,3.25281,3074.3,3073.8,3.66234285]
[1732137886127,3.25267,3074.4,3073.8,3.66234285]
[1732137886473,3.25277,3074.3,3073.8,3.66234285]
[1732137886616,4.02176,3074.9,3073.7,0.8046]
[1732137886617,3.25296,3074.2,3073.7,0.8046]
[1732137886962,3.25344,3073.7,3073.3,0.7613]
[1732137887246,3.25359,3073.6,3073.3,0.7613]
[1732137887408,3.25363,3073.5,3073.3,0.7613]
[1732137887614,3.25368,3073.5,3073.3,0.7613]
[1732137887809,3.25347,3073.7,3073.3,0.7613]
[1732137888014,3.25324,3073.9,3073.3,0.7613]
[1732137888333,3.25348,3073.7,3073.3,0.7613]
[1732137888540,3.25353,3073.6,3073.3,0.7613]
[1732137889612,6.50714,3073.6,3073.3,0.7613]
[1732137889813,3.25353,3073.6,3073.3,0.7613]
[1732137890061,3.25335,3073.8,3073.3,0.7613]
[1732137890261,3.25335,3073.8,3073.3,1.488225]
[1732137890566,3.25291,3074.2,3073.3,0.7613]
[1732137890769,3.25291,3074.2,3073.7,3.25338]
[1732137890961,3.25291,3074.2,3073.5,3.25358]
[1732137891126,3.25298,3074.1,3073.5,3.25358]
[1732137891446,3.25291,3074.2,3073.5,3.25352]
[1732137891647,3.253,3074.1,3073.5,3.655008]
[1732137891846,3.253,3074.1,3073.5,6.908558]
[1732137892053,3.253,3074.1,3073.5,6.908568]
[1732137892237,3.25291,3074.2,3073.6,3.25349]
[1732137892421,3.25299,3074.1,3073.6,3.25349]
[1732137892624,3.25312,3074.0,3073.5,3.655098]
[1732137892847,6.50628,3074.0,3073.5,3.25361]
[1732137893161,3.25312,3074.0,3073.5,3.955101]
[1732137893658,3.25312,3074.0,3073.5,0.701491]
[1732137894925,3.25331,3073.8,3073.5,0.701491]
[1732137896418,3.25331,3073.8,3073.4,3.0]
[1732137896617,3.25331,3073.8,3073.3,4.0151]
[1732137897433,3.25331,3073.8,3073.3,4.01506]
[1732137897636,3.25314,3074.0,3073.3,4.01506]
[1732137897637,6.5063,3074.0,3073.4,3.25371]
[1732137897847,3.25308,3074.1,3073.5,0.726877]
[1732137898157,3.25292,3074.2,3073.5,3.25353]
[1732137898359,3.25304,3074.1,3073.6,3.2535]
[1732137898532,1.54292666,3074.6,3073.5,3.65828618]
[1732137898533,3.25284,3074.3,3073.5,3.65828618]
[1732137898738,3.25287,3074.2,3073.6,3.2535]
[1732137898954,3.25339,3073.8,3073.3,0.7613]
[1732137899126,3.25378,3073.4,3073.0,0.8108]
[1732137899469,3.25368,3073.5,3073.0,0.8108]
[1732137899758,0.79,3073.9,3072.0,0.02]
[1732137899759,3.25401,3073.2,3072.6,3.25447]
[1732137899958,3.25377,3073.4,3072.6,3.25447]
[1732137900158,3.25377,3073.4,3072.8,3.2543]
[1732137900358,0.79,3073.9,3072.7,0.406527]
[1732137900572,3.26291,3074.2,3072.5,0.8108]
[1732137900573,3.25431,3072.9,3072.5,0.8108]
[1732137900783,0.7903,3073.2,3072.5,3.25463]
[1732137900927,3.25378,3073.4,3072.8,4.0791]
[1732137901127,3.25378,3073.4,3072.9,3.28676874]
[1732137901355,4.06932,3073.9,3072.8,0.8248]
[1732137901560,3.25357,3073.6,3073.0,3.25414]
[1732137901734,3.25384,3073.3,3072.8,4.07908]
[1732137901928,3.25384,3073.3,3072.8,4.812445]
[1732137902129,3.25386,3073.3,3072.8,1.558165]
[1732137902365,3.25365,3073.5,3072.9,3.25419]
[1732137902366,3.25373,3073.4,3072.9,3.25419]
[1732137902553,3.25344,3073.7,3072.9,3.25419]
[1732137902764,2.22725566,3073.9,3073.1,3.25395]
[1732137902956,3.25325,3073.9,3073.2,3.579225]
[1732137903156,0.7576,3074.2,3073.2,0.325395]
[1732137903357,3.25248,3074.6,3073.6,3.25344]
[1732137903358,3.25304,3074.1,3073.6,3.25344]
[1732137903558,6.5057,3074.3,3073.7,3.2534]
[1732137903745,6.50568,3074.3,3073.7,3.2534]
[1732137904069,3.25235,3074.7,3074.2,3.25285]
[1732137904236,3.25246,3074.6,3074.2,0.7895]
[1732137904431,3.25262,3074.5,3074.2,0.7895]
[1732137904862,0.7836,3075.1,3074.2,0.7895]
[1732137904863,3.25246,3074.6,3074.2,0.7895]
[1732137905368,3.25246,3074.6,3073.8,0.7895]
[1732137905369,3.25279,3074.3,3073.8,0.7895]
[1732137905775,3.25247,3074.6,3074.0,3.25306]
[1732137906070,3.25247,3074.6,3073.8,4.04273]
[1732137906071,3.25284,3074.3,3073.8,4.04279]
[1732137906234,3.25284,3074.3,3073.8,4.747063]
[1732137906640,3.2529,3074.2,3073.8,1.493773]
[1732137906848,0.403555,3075.0,3073.8,0.7895]
[1732137907139,3.25235,3074.7,3073.8,4.07523983]
[1732137907354,3.577585,3074.7,3073.8,4.04274]
[1732137907678,0.403555,3075.0,3073.9,3.25313]
[1732137907679,6.50527,3074.5,3073.9,3.25313]
[1732137907843,3.655615,3075.0,3073.9,3.25313]
[1732137908172,3.655615,3075.0,3073.2,3.0]
[1732137908173,3.2529,3074.2,3073.5,3.8099]
[1732137908350,3.2529,3074.2,3073.5,7.0635]
[1732137908550,3.25299,3074.1,3073.6,3.25343]
[1732137908771,3.2529,3074.2,3073.6,3.25343]
[1732137909546,3.25298,3074.2,3073.5,0.8099]
[1732137909752,3.25293,3074.2,3073.6,3.25345]
[1732137910000,3.2528,3074.3,3073.8,3.25325]
[1732137910153,3.2528,3074.3,3073.7,3.25336]
[1732137910343,3.2528,3074.3,3073.8,3.25323]
[1732137910546,3.25258,3074.5,3073.9,3.25315]
[1732137910740,3.25288,3074.2,3073.7,3.25333]
[1732137910978,0.8213,3075.0,3074.3,3.2527]
[1732137911141,3.25225,3074.8,3074.2,0.8099]
[1732137911345,3.25225,3074.8,3073.7,0.73493572]
[1732137911346,3.2529,3074.2,3073.6,7.06335]
[1732137911785,3.25269,3074.4,3073.8,3.25323]
[1732137911994,0.8213,3074.7,3073.7,0.706335]
[1732137911995,3.25284,3074.3,3073.7,0.706335]
[1732137912171,3.25315,3074.0,3073.6,0.8099]
[1732137912463,3.25319,3074.0,3073.6,0.8099]
[1732137912760,0.37898343,3074.6,3073.2,3.25393]
[1732137912761,3.25361,3073.5,3073.2,0.8158]
[1732137912944,3.2533,3073.8,3073.3,3.25381]
[1732137913167,0.8195,3074.1,3073.2,0.8158]
[1732137913349,3.25342,3073.7,3073.2,0.8158]
[1732137913777,3.25364,3073.5,3073.2,0.8158]
[1732137914672,3.25359,3073.6,3073.2,0.8158]
[1732137914875,4.07251,3074.1,3072.8,0.8327]
[1732137914876,3.25362,3073.5,3072.8,0.8327]
[1732137915146,3.25383,3073.3,3072.8,4.08704]
[1732137915344,3.25383,3073.3,3072.8,0.8327]
[1732137915746,3.25396,3073.2,3072.8,0.8327]
[1732137916248,3.25378,3073.4,3072.8,0.8327]
[1732137916577,3.25378,3073.4,3072.9,3.25423]
[1732137917172,6.50757,3073.4,3072.9,3.25423]
[1732137917369,3.25383,3073.3,3072.8,3.8652402]
[1732137917568,3.25396,3073.2,3072.8,0.8327]
[1732137917770,3.25386,3073.3,3072.8,4.08704]
[1732137917956,3.25389,3073.3,3072.8,4.08704]
[1732137918158,3.25357,3073.6,3073.0,3.2541]
[1732137918361,3.25357,3073.6,3073.1,3.25401]
[1732137918577,3.25357,3073.6,3072.9,3.25424]
[1732137918780,3.25311,3074.0,3073.3,3.25375]
[1732137918978,3.25316,3074.0,3073.5,3.25358]
[1732137919183,3.25322,3073.9,3073.4,0.7526]
[1732137919381,6.50651,3073.9,3073.4,0.7526]
[1732137919554,3.25322,3073.9,3073.4,0.7526]
[1732137919758,3.25303,3074.1,3073.6,3.25348]
[1732137919970,3.25303,3074.1,3073.4,4.03879448]
[1732137920172,3.25315,3074.0,3073.4,4.03879448]
[1732137920353,3.25303,3074.1,3073.4,4.03879448]
[1732137920548,3.25278,3074.3,3073.6,3.25345]
[1732137920869,3.25306,3074.1,3073.6,3.25345]
[1732137921259,3.2529,3074.2,3073.6,3.25344]
[1732137921459,3.2529,3074.2,3073.6,6.50688]
[1732137921666,3.2529,3074.2,3073.7,3.25339]
[1732137922094,0.769,3074.5,3073.4,0.7526]
[1732137922095,3.25335,3073.8,3073.4,0.7526]
[1732137922292,3.25347,3073.7,3073.4,0.7526]
[1732137922497,2.96853426,3074.2,3073.4,0.7526]
[1732137922498,3.25314,3074.0,3073.4,4.00628]
[1732137922799,3.2533,3073.8,3073.4,0.7526]
[1732137923558,3.25355,3073.6,3073.1,4.0422]
[1732137923758,2.96853426,3074.2,3073.1,4.0422]
[1732137924071,3.25309,3074.0,3073.3,3.25373]
[1732137924408,3.25309,3074.0,3073.4,3.58229645]
[1732137924615,3.25321,3073.9,3073.3,3.25373]
[1732137924923,3.25341,3073.7,3073.1,7.29617]
[1732137925065,0.37375343,3074.4,3073.3,3.25374]
[1732137925265,3.25318,3074.0,3073.3,3.25374]
[1732137925600,3.25318,3074.0,3073.3,6.50755]
[1732137925807,3.25318,3074.0,3073.4,3.2537]
[1732137926164,4.14129476,3074.5,3073.8,3.2533]
[1732137926165,3.25279,3074.3,3073.8,3.2533]
[1732137926476,3.25279,3074.3,3073.7,3.25334]
[1732137926671,3.25279,3074.3,3073.8,3.25326]
[1732137927017,3.25261,3074.5,3073.8,3.25326]
[1732137927018,3.25271,3074.4,3073.8,3.25326]
[1732137927304,3.25299,3074.1,3073.6,4.07881]
[1732137927500,3.25358,3073.6,3072.9,4.759942]
[1732137927703,3.25389,3073.3,3072.9,0.8253]
[1732137928089,6.50782,3073.3,3072.9,0.8253]
[1732137928294,3.25389,3073.3,3072.9,0.8253]
[1732137928993,3.25424,3073.0,3072.4,3.25472]
[1732137929167,0.4406899,3073.4,3072.5,0.80194142]
[1732137929168,3.25378,3073.4,3072.5,0.80194142]
[1732137929912,3.25385,3073.3,3072.8,3.25427]
[1732137930283,3.25378,3073.4,3072.8,0.650874]
[1732137930284,3.25394,3073.2,3072.8,0.650874]
[1732137930795,3.25394,3073.2,3072.5,4.02406]
[1732137930796,3.25415,3073.0,3072.5,4.02406]
[1732137930994,3.25394,3073.2,3072.5,4.02406]
[1732137930995,3.25394,3073.2,3072.5,3.7694]
[1732137931307,3.25406,3073.1,3072.6,3.2545]
[1732137931506,3.25355,3073.6,3072.6,0.727863]
[1732137931507,3.25414,3073.0,3072.6,0.727863]
[1732137931712,3.25414,3073.0,3072.5,7.02402]
[1732137931932,0.8093,3073.3,3072.1,0.7694]
[1732137932112,3.25469,3072.5,3072.1,0.7694]
[1732137932296,3.65693684,3073.0,3072.1,0.7694]
[1732137932297,3.25463,3072.6,3072.1,0.7694]
[1732137932495,3.25484,3072.4,3072.1,0.7694]
[1732137933097,3.2545,3072.7,3072.1,0.7694]
[1732137933301,3.25457,3072.6,3072.1,0.7694]
[1732137933505,3.25469,3072.5,3072.1,0.7694]
[1732137933899,3.2545,3072.7,3072.1,0.7694]
[1732137934099,3.2545,3072.7,3072.1,4.726958]
[1732137934389,3.25469,3072.5,3072.1,1.471868]
[1732137934589,3.25486,3072.4,3072.1,0.7694]
[1732137934794,3.25486,3072.4,3071.8,3.0]
[1732137934795,3.25501,3072.2,3071.8,0.7694]
[1732137935835,0.8093,3072.6,3071.4,0.8194]
[1732137935836,3.25525,3072.0,3071.4,0.8194]
[1732137936193,3.25542,3071.8,3071.4,0.8194]
[1732137936913,3.25525,3072.0,3071.4,0.8194]
[1732137937090,3.25482,3072.4,3071.4,1.2594901]
[1732137937286,3.2551,3072.1,3071.5,3.0]
[1732137937493,3.25541,3071.9,3071.4,0.8194]
[1732137937694,3.25541,3071.9,3071.4,1.226914]
[1732137937895,3.2555,3071.8,3071.4,1.226914]
[1732137938635,3.25565,3071.6,3071.4,0.8194]
[1732137939130,0.4406899,3072.0,3071.0,0.8309]
[1732137939332,3.25577,3071.5,3071.0,0.8309]
[1732137939504,0.8444504,3072.0,3071.0,0.86346049]
[1732137939505,3.25522,3072.0,3071.0,0.86346049]
[1732137939725,0.7623,3072.3,3071.6,0.8029]
[1732137939726,3.25501,3072.2,3071.6,0.8029]
[1732137940051,3.25501,3072.2,3071.6,1.208763]
[1732137940217,3.25501,3072.2,3071.6,0.8029]
[1732137940417,3.25469,3072.5,3071.9,3.25521]
[1732137940636,3.25495,3072.3,3071.7,3.25548]
[1732137940856,3.25468,3072.5,3071.8,0.405838]
[1732137941054,0.8072,3072.7,3071.9,3.28786078]
[1732137941055,3.25458,3072.6,3071.9,3.28786078]
[1732137941241,4.06169,3072.7,3071.9,3.28786078]
[1732137941242,0.8072,3072.7,3071.9,0.03255078]
[1732137941448,3.25468,3072.5,3071.7,3.25549]
[1732137941738,6.50943,3072.5,3071.8,3.661189]
[1732137941944,3.25489,3072.3,3071.8,3.661189]
[1732137942547,3.25468,3072.5,3071.8,3.661189]
[1732137942720,3.25466,3072.6,3072.0,3.2552]
[1732137942921,3.25474,3072.5,3071.9,0.39866876]
[1732137943130,3.25425,3072.9,3071.6,0.8029]
[1732137943324,3.25425,3072.9,3071.3,3.0]
[1732137943325,3.25478,3072.4,3071.3,3.7521]
[1732137943650,0.7618,3072.5,3071.4,0.03255537]
[1732137943989,0.7618,3072.5,3071.4,3.0]
[1732137943990,6.51058,3072.0,3071.4,3.0]
[1732137944281,1.28811872,3072.5,3071.3,4.00799]
[1732137944423,3.2551,3072.1,3071.5,3.25573]
[1732137944618,1.72880862,3072.5,3071.7,3.25552]
[1732137944619,3.255,3072.2,3071.7,3.25552]
[1732137945076,3.2552,3072.1,3071.5,3.25564]
[1732137945258,3.25489,3072.3,3071.3,0.7521]
[1732137945473,3.25624,3071.1,3070.9,0.7521]
[1732137945756,3.25637,3070.9,3070.6,0.7704]
[1732137946151,3.25658,3070.7,3070.3,0.7683]
[1732137946481,3.25637,3070.9,3070.3,0.7683]
[1732137946621,0.4406899,3071.4,3070.3,0.7683]
[1732137946819,4.06735,3071.9,3070.5,0.7683]
[1732137947054,3.25592,3071.4,3070.8,3.25647]
[1732137947295,3.25592,3071.4,3070.6,3.25659]
[1732137947494,3.2561,3071.2,3070.7,3.0]
[1732137947677,3.2561,3071.2,3070.6,3.959099]
[1732137947904,3.256,3071.3,3070.6,7.215729]
[1732137948318,0.812,3071.9,3070.7,0.7984029]
[1732137948599,0.812,3071.9,3071.0,3.2562]
[1732137948600,3.25563,3071.6,3071.0,3.2562]
[1732137949104,3.25544,3071.8,3070.5,0.7683]
[1732137949105,3.25542,3071.8,3070.7,3.25652]
[1732137949420,3.25597,3071.3,3070.5,3.7683]
[1732137949573,3.25612,3071.2,3070.7,3.25658]
[1732137949936,3.25612,3071.2,3070.5,4.02503]
[1732137949937,3.25612,3071.2,3070.6,3.0]
[1732137950079,3.25597,3071.3,3070.5,1.170803]
[1732137950442,3.25597,3071.3,3070.5,4.02509]
[1732137950573,0.8307,3071.1,3070.2,0.8194]
[1732137950945,3.25648,3070.8,3070.3,3.25699]
[1732137951118,0.8307,3071.1,3070.3,3.2569]
[1732137951119,3.25634,3071.0,3070.3,3.2569]
[1732137951304,3.25634,3071.0,3070.2,4.07651]
[1732137951486,3.25596,3071.3,3070.7,3.25652]
[1732137951685,3.25596,3071.3,3070.7,0.8194]
[1732137951902,3.25576,3071.5,3070.7,0.8194]
[1732137952127,0.4493204,3071.5,3070.7,0.8194]
[1732137952291,3.2559,3071.4,3070.9,3.25631]
[1732137952604,6.51182,3071.4,3070.9,3.25631]
[1732137952808,3.2559,3071.4,3070.9,3.25631]
[1732137953005,0.8307,3071.6,3070.7,0.8194]
[1732137953208,3.2555,3071.8,3071.1,3.25605]
[1732137953420,3.66385,3071.8,3071.2,0.03255938]
[1732137953620,3.25531,3071.9,3071.2,3.25604]
[1732137953931,3.25531,3071.9,3071.1,3.2561]
[1732137953932,3.25573,3071.6,3071.0,3.2562]
[1732137954136,0.828,3072.0,3070.8,3.707607]
[1732137954137,3.25598,3071.3,3070.8,3.707607]
[1732137954309,3.25617,3071.1,3070.7,0.8194]
[1732137954710,3.25638,3070.9,3070.7,0.8194]
[1732137955021,3.25624,3071.1,3070.7,0.8194]
[1732137955208,3.25635,3071.0,3070.4,7.00933]
[1732137955408,0.7921,3071.3,3070.5,3.25679]
[1732137955604,3.25593,3071.4,3070.7,3.25649]
[1732137955800,3.25575,3071.5,3070.8,3.25647]
[1732137956010,3.25569,3071.6,3071.0,3.25617]
[1732137956335,3.2558,3071.5,3071.0,0.726602]
[1732137956541,3.25569,3071.6,3070.8,4.00985]
[1732137956723,3.25593,3071.4,3070.8,4.00985]
[1732137957237,3.581443,3071.4,3070.8,0.7534]
[1732137957612,3.25585,3071.4,3070.8,0.7534]
[1732137957818,0.4406899,3071.7,3070.8,0.7534]
[1732137957819,3.25561,3071.7,3071.1,3.25608]
[1732137958012,3.2556,3071.7,3071.1,6.51217]
[1732137958203,6.51073,3071.9,3071.2,3.25598]
[1732137958403,3.25549,3071.8,3071.2,3.25598]
[1732137958823,3.25561,3071.7,3071.1,3.25613]